fUST/lending_fUST_20250211
["ID","MTS","AMOUNT","RATE_DAILY","PERIOD"]
[352661021,1739219270216,-151.0,0.00017107,2]
[352661022,1739219270239,-151.0,0.00017107,2]
[352661023,1739219270269,-151.0,0.00017107,2]
[352661024,1739219270293,-127.90182675,0.00017107,2]
[352661025,1739219270469,-508.35,0.00012465,2]
[352661026,1739219270493,-508.35,0.00012602,2]
[352661027,1739219270516,-508.35,0.00012739,2]
[352661028,1739219270540,-508.35,0.00012876,2]
[352661029,1739219270563,-508.35,0.00013013,2]
[352661030,1739219270585,-112.0892983,0.0001315,2]
[352661080,1739219432765,-250.0,0.00010008,2]
[352661081,1739219432775,-300.0,0.00010154,2]
[352661082,1739219432784,-4.15,0.00010155,2]
[352661083,1739219432822,-11936.5989306,0.00010155,2]
[352661084,1739219432832,-158.346914,0.00010556,2]
[352661085,1739219432842,-400.0,0.00010685,2]
[352661086,1739219432852,-7438.69753278,0.00010847,2]
[352661087,1739219432862,-5000.0,0.00010848,2]
[352661088,1739219432871,-500.0,0.00010958,2]
[352661089,1739219432881,-500.0,0.00010958,2]
[352661090,1739219432891,-500.0,0.00010958,2]
[352661091,1739219432900,-500.0,0.00010958,2]
[352661092,1739219432909,-500.0,0.00010958,2]
[352661093,1739219432919,-500.0,0.00010958,2]
[352661094,1739219432928,-500.0,0.00010958,2]
[352661095,1739219432937,-500.0,0.00010958,2]
[352661096,1739219432946,-500.0,0.00010958,2]
[352661097,1739219432955,-326.09216244,0.00010958,2]
[352661098,1739219432964,-500.0,0.00010958,2]
[352661099,1739219432974,-500.0,0.00010958,2]
[352661100,1739219432983,-500.0,0.00010958,2]
[352661101,1739219432992,-500.0,0.00010958,2]
[352661102,1739219433002,-536.31,0.00010958,2]
[352661103,1739219433011,-500.0,0.00010958,2]
[352661104,1739219433021,-500.0,0.00010958,2]
[352661105,1739219433032,-558.18687277,0.00010958,2]
[352661106,1739219433042,-500.0,0.00010958,2]
[352661107,1739219433053,-500.0,0.00010958,2]
[352661108,1739219433064,-500.0,0.00010958,2]
[352661109,1739219433075,-500.0,0.00010958,2]
[352661110,1739219433085,-500.0,0.00010958,2]
[352661111,1739219433095,-500.0,0.00010958,2]
[352661112,1739219433105,-500.0,0.00010958,2]
[352661113,1739219433115,-500.0,0.00010958,2]
[352661114,1739219433124,-500.0,0.00010958,2]
[352661115,1739219433134,-500.0,0.00010958,2]
[352661116,1739219433144,-500.0,0.00010958,2]
[352661117,1739219433153,-500.0,0.00010958,2]
[352661118,1739219433281,-500.0,0.00010958,2]
[352661119,1739219433294,-500.0,0.00010958,2]
[352661120,1739219433306,-500.0,0.00010958,2]
[352661121,1739219433317,-500.0,0.00010958,2]
[352661122,1739219433327,-503.20074739,0.00010958,2]
[352661123,1739219433338,-500.0,0.00010958,2]
[352661124,1739219433349,-500.0,0.00010958,2]
[352661125,1739219433358,-283.47294979,0.00010958,2]
[352661126,1739219433369,-500.0,0.00010958,2]
[352661127,1739219433379,-500.0,0.00010958,2]
[352661128,1739219433389,-500.0,0.00010958,2]
[352661129,1739219433399,-500.0,0.00010958,2]
[352661130,1739219433409,-500.0,0.00010958,2]
[352661131,1739219433419,-500.0,0.00010958,2]
[352661132,1739219433429,-500.0,0.00010958,2]
[352661133,1739219433439,-500.0,0.00010958,2]
[352661134,1739219433449,-500.0,0.00010958,2]
[352661135,1739219433459,-500.0,0.00010958,2]
[352661136,1739219433469,-500.0,0.00010958,2]
[352661137,1739219433479,-494.65173746,0.00010958,2]
[352661138,1739219433489,-500.0,0.00010958,2]
[352661139,1739219433498,-500.0,0.00010958,2]
[352661140,1739219433508,-500.0,0.00010958,2]
[352661141,1739219433517,-500.0,0.00010958,2]
[352661142,1739219433528,-500.0,0.00010958,2]
[352661143,1739219433537,-500.0,0.00010958,2]
[352661144,1739219433547,-500.0,0.00011095,2]
[352661145,1739219433558,-500.0,0.00011095,2]
[352661146,1739219433568,-501.51,0.00011095,2]
[352661147,1739219433577,-500.0,0.00011095,2]
[352661148,1739219433587,-176.6,0.00011095,2]
[352661149,1739219433596,-589.51582364,0.00011095,2]
[352661150,1739219433605,-500.0,0.00011095,2]
[352661151,1739219433615,-500.0,0.00011095,2]
[352661152,1739219433625,-517.15,0.00011095,2]
[352661153,1739219433634,-500.0,0.00011095,2]
[352661154,1739219433644,-500.0,0.00011095,2]
[352661155,1739219433654,-500.0,0.00011095,2]
[352661156,1739219433663,-500.0,0.00011095,2]
[352661157,1739219433672,-500.0,0.00011095,2]
[352661158,1739219433682,-500.0,0.00011095,2]
[352661159,1739219433691,-500.0,0.00011095,2]
[352661160,1739219433701,-500.0,0.00011095,2]
[352661161,1739219433711,-500.0,0.00011095,2]
[352661162,1739219433721,-500.0,0.00011095,2]
[352661163,1739219433730,-500.0,0.00011095,2]
[352661164,1739219433740,-500.0,0.00011095,2]
[352661165,1739219433750,-500.0,0.00011095,2]
[352661166,1739219433761,-500.0,0.00011095,2]
[352661167,1739219433771,-500.0,0.00011095,2]
[352661168,1739219433781,-500.0,0.00011095,2]
[352661169,1739219433791,-500.0,0.00011095,2]
[352661170,1739219433801,-500.0,0.00011095,2]
[352661171,1739219433812,-500.0,0.00011095,2]
[352661172,1739219433822,-500.0,0.00011095,2]
[352661173,1739219433832,-500.0,0.00011095,2]
[352661174,1739219433841,-500.0,0.00011095,2]
[352661175,1739219433851,-500.0,0.00011095,2]
[352661176,1739219433860,-500.0,0.00011095,2]
[352661177,1739219433870,-312.77,0.00011095,2]
[352661178,1739219433879,-2197.43401219,0.00011132,2]
[352661179,1739219433889,-162.13356209,0.00011132,2]
[352661180,1739219433899,-420.0,0.00011168,2]
[352661181,1739219433908,-500.0,0.00011231,2]
[352661182,1739219433917,-500.0,0.00011232,2]
[352661183,1739219433927,-197.06,0.00011232,2]
[352661184,1739219433936,-500.0,0.00011232,2]
[352661185,1739219433946,-500.0,0.00011232,2]
[352661186,1739219433954,-345.19,0.00011232,2]
[352661187,1739219433964,-500.0,0.00011232,2]
[352661188,1739219433973,-500.0,0.00011232,2]
[352661189,1739219433983,-500.0,0.00011232,2]
[352661190,1739219433993,-508.73,0.00011232,2]
[352661191,1739219434002,-500.0,0.00011232,2]
[352661192,1739219434011,-500.0,0.00011232,2]
[352661193,1739219434021,-500.0,0.00011232,2]
[352661194,1739219434030,-500.0,0.00011232,2]
[352661195,1739219434040,-417.65,0.00011232,2]
[352661196,1739219434050,-500.0,0.00011232,2]
[352661197,1739219434060,-500.0,0.00011232,2]
[352661198,1739219434070,-500.0,0.00011232,2]
[352661199,1739219434079,-500.0,0.00011232,2]
[352661200,1739219434089,-500.0,0.00011232,2]
[352661201,1739219434098,-500.0,0.00011232,2]
[352661202,1739219434107,-232.74,0.00011232,2]
[352661203,1739219434119,-534.23,0.00011232,2]
[352661204,1739219434128,-500.0,0.00011232,2]
[352661205,1739219434138,-500.0,0.00011232,2]
[352661206,1739219434147,-500.0,0.00011232,2]
[352661207,1739219434157,-500.0,0.00011232,2]
[352661208,1739219434167,-500.0,0.00011232,2]
[352661209,1739219434177,-500.0,0.00011232,2]
[352661210,1739219434187,-11848.84946806,0.00011236,4]
[352661211,1739219434196,-500.0,0.00011368,2]
[352661212,1739219434206,-500.0,0.00011369,2]
[352661213,1739219434215,-500.0,0.00011369,2]
[352661214,1739219434224,-611.39475663,0.00011369,2]
[352661215,1739219434234,-500.0,0.00011369,2]
[352661216,1739219434244,-500.0,0.00011369,2]
[352661217,1739219434254,-500.0,0.00011369,2]
[352661218,1739219434263,-500.0,0.00011369,2]
[352661219,1739219434273,-500.0,0.00011369,2]
[352661220,1739219434283,-500.0,0.00011369,2]
[352661221,1739219434296,-500.0,0.00011369,2]
[352661222,1739219434307,-500.0,0.00011369,2]
[352661223,1739219434317,-500.0,0.00011369,2]
[352661224,1739219434326,-436.11,0.00011369,2]
[352661225,1739219434337,-500.0,0.00011369,2]
[352661226,1739219434347,-500.0,0.00011369,2]
[352661227,1739219434356,-500.0,0.00011369,2]
[352661228,1739219434365,-500.0,0.00011369,2]
[352661229,1739219434379,-500.0,0.00011369,2]
[352661230,1739219434389,-581.28,0.00011505,2]
[352661231,1739219434398,-500.0,0.00011506,2]
[352661232,1739219434407,-500.0,0.00011506,2]
[352661233,1739219434417,-500.0,0.00011506,2]
[352661234,1739219434427,-500.0,0.00011506,2]
[352661235,1739219434436,-500.0,0.00011506,2]
[352661236,1739219434446,-500.0,0.00011506,2]
[352661237,1739219434455,-500.0,0.00011506,2]
[352661238,1739219434464,-500.0,0.00011506,2]
[352661239,1739219434474,-500.0,0.00011506,2]
[352661240,1739219434483,-500.0,0.00011506,2]
[352661241,1739219434492,-500.0,0.00011506,2]
[352661242,1739219434502,-649.04,0.00011506,2]
[352661243,1739219434511,-500.0,0.00011506,2]
[352661244,1739219434520,-500.0,0.00011506,2]
[352661245,1739219434530,-500.0,0.00011643,2]
[352661246,1739219434539,-500.0,0.00011643,2]
[352661247,1739219434548,-500.0,0.00011643,2]
[352661248,1739219434561,-500.0,0.00011643,2]
[352661249,1739219434570,-500.0,0.00011643,2]
[352661250,1739219434580,-500.0,0.00011643,2]
[352661251,1739219434589,-500.0,0.00011643,2]
[352661252,1739219434599,-500.0,0.00011643,2]
[352661253,1739219434608,-500.0,0.00011643,2]
[352661254,1739219434617,-500.0,0.00011643,2]
[352661255,1739219434627,-500.0,0.00011643,2]
[352661256,1739219434638,-500.0,0.0001178,2]
[352661257,1739219434647,-500.0,0.0001178,2]
[352661258,1739219434657,-500.0,0.0001178,2]
[352661259,1739219434666,-500.0,0.0001178,2]
[352661260,1739219434675,-500.0,0.0001178,2]
[352661261,1739219434685,-594.2,0.0001178,2]
[352661262,1739219434694,-500.0,0.0001178,2]
[352661263,1739219434703,-500.0,0.0001178,2]
[352661264,1739219434712,-500.0,0.0001178,2]
[352661265,1739219434722,-500.0,0.0001178,2]
[352661266,1739219434731,-500.0,0.0001178,2]
[352661267,1739219434740,-500.0,0.00011917,2]
[352661268,1739219434749,-500.0,0.00011917,2]
[352661269,1739219434759,-500.0,0.00011917,2]
[352661270,1739219434768,-500.0,0.00011917,2]
[352661271,1739219434778,-500.0,0.00011917,2]
[352661272,1739219434788,-203.01,0.00011917,2]
[352661273,1739219434797,-177.23,0.00011917,2]
[352661274,1739219434807,-500.0,0.00011917,2]
[352661275,1739219434817,-500.0,0.00011917,2]
[352661276,1739219434826,-500.0,0.00012054,2]
[352661277,1739219434835,-500.0,0.00012054,2]
[352661278,1739219434845,-500.0,0.00012054,2]
[352661279,1739219434854,-500.0,0.00012054,2]
[352661280,1739219434864,-500.0,0.00012054,2]
[352661281,1739219434874,-500.0,0.00012191,2]
[352661282,1739219434884,-500.0,0.00012191,2]
[352661283,1739219434894,-198.7,0.00012191,2]
[352661284,1739219434903,-500.0,0.00012191,2]
[352661285,1739219434913,-500.0,0.00012191,2]
[352661286,1739219434922,-587.0,0.00012283,2]
[352661287,1739219434932,-500.0,0.00012328,2]
[352661288,1739219434942,-500.0,0.00012328,2]
[352661289,1739219434952,-454.7307017,0.00012328,2]
[352661290,1739219434962,-500.0,0.00012328,2]
[352661291,1739219434971,-500.0,0.00012465,2]
[352661292,1739219434981,-500.0,0.00012465,2]
[352661293,1739219434991,-500.0,0.00012465,2]
[352661294,1739219435001,-263.9,0.00012602,2]
[352661295,1739219435010,-385.64,0.00012602,2]
[352661296,1739219435020,-500.0,0.00012602,2]
[352661297,1739219435029,-599.62,0.00012739,2]
[352661298,1739219435038,-500.0,0.0001339,2]
[352661299,1739219435047,-2402.03518121,0.00013424,5]
[352661300,1739219435057,-823.0,0.00013509,2]
[352661301,1739219435065,-2500.0,0.00013928,2]
[352661302,1739219435075,-2500.0,0.00013937,2]
[352661303,1739219435085,-2500.0,0.00013946,2]
[352661304,1739219435094,-2500.0,0.00013954,2]
[352661305,1739219435103,-2500.0,0.00013963,2]
[352661306,1739219435112,-2500.0,0.00013972,2]
[352661307,1739219435121,-415.0,0.00014,4]
[352661308,1739219435130,-1564.41,0.000145,2]
[352661309,1739219435139,-500.0,0.0001476,2]
[352661310,1739219435148,-1152.0,0.00014858,2]
[352661311,1739219435157,-415.0,0.000155,5]
[352661312,1739219435166,-500.0,0.00015533,2]
[352661313,1739219435175,-500.0,0.00015999,2]
[352661314,1739219435184,-162.35303837,0.00015999,2]
[352661315,1739219435194,-174523.47512456,0.00016,2]
[352661316,1739219436904,-9944.803085,0.00016,2]
[352661317,1739219436915,-337.99742532,0.00016,2]
[352661318,1739219436927,-12383.83748201,0.00016,2]
[352661319,1739219436938,-15440.66229932,0.00016,2]
[352661320,1739219436949,-1000.0,0.00016,2]
[352661333,1739219438568,-5000.0,9.908e-05,2]
[352661334,1739219438578,-500.0,0.00010958,2]
[352661335,1739219438587,-500.0,0.00010958,2]
[352661336,1739219438596,-500.0,0.00010958,2]
[352661337,1739219438606,-38039.3414354,0.00012365,2]
[352661338,1739219438617,-78190.3205961,0.00016,2]
[352661339,1739219438626,-480.054,0.00016129,2]
[352661340,1739219438635,-500.0,0.0001613,2]
[352661341,1739219438646,-580.3,0.00016164,2]
[352661342,1739219438655,-390.0,0.00016341,2]
[352661343,1739219438664,-499.345227,0.0001699,2]
[352661344,1739219438673,-415.0,0.00017,6]
[352661345,1739219438682,-726.678,0.00017,120]
[352661346,1739219438691,-19846.16603478,0.00017007,2]
[352661347,1739219438700,-3000.0,0.00017016,2]
[352661348,1739219438710,-170.4501298,0.00017053,2]
[352661350,1739219438719,-317.0,0.0001706,2]
[352661352,1739219438729,-23.09817325,0.00017107,2]
[352661354,1739219438739,-151.0,0.00017107,2]
[352661355,1739219438748,-151.0,0.00017107,2]
[352661356,1739219438758,-11860.91429316,0.00017115,5]
[352661357,1739219438767,-282.06463665,0.00017115,5]
[352661358,1739219438776,-533523.34315518,0.00017116,61]
[352661439,1739219451020,-124473.30704253,0.00017116,61]
[352661440,1739219451192,-294.87103314,0.00017116,61]
[352661441,1739219451204,-396336.96677897,0.00017116,61]
[352661442,1739219451318,-500.0,0.00010958,2]
[352661443,1739219451327,-500.0,0.00010958,2]
[352661444,1739219451338,-500.0,0.00010958,2]
[352661445,1739219451347,-500.0,0.00010958,2]
[352661446,1739219451357,-500.0,0.00011095,2]
[352661447,1739219451366,-500.0,0.00011095,2]
[352661448,1739219451378,-500.0,0.00011095,2]
[352661449,1739219451389,-500.0,0.00011232,2]
[352661450,1739219451399,-416.21009282,0.00011369,2]
[352661451,1739219451408,-461.0891,0.0001613,2]
[352661452,1739219451418,-17864.86917394,0.00017116,61]
[352661453,1739219451457,-119.60447394,0.00010958,2]
[352661454,1739219451470,-380.39552606,0.00010958,2]
[352661455,1739219451480,-774.60447414,0.00017116,61]
[352661456,1739219451491,-2086.8534869,0.00017116,61]
[352661457,1739219451502,-14361.29999999,0.00017116,61]
[352661458,1739219451513,-73125.0,0.00017116,61]
[352661459,1739219451525,-3682.13468578,0.00017116,61]
[352661460,1739219451536,-2609.4,0.00017116,61]
[352661461,1739219451578,-500.0,0.00010958,2]
[352661462,1739219451588,-27.1500001,0.00010958,2]
[352661463,1739219451599,-472.8499999,0.00010958,2]
[352661464,1739219451609,-150.0,0.00015791,2]
[352661465,1739219451619,-152.0,0.000171,2]
[352661466,1739219451628,-682.31896124,0.00017116,61]
[352661467,1739219451675,-111.15314926,0.00017116,61]
[352661471,1739220549111,-231.7452226,9.731e-05,2]
[352661472,1739220549132,-412.11884631,9.791e-05,2]
[352661473,1739220549154,-4899.58924522,9.792e-05,2]
[352661474,1739220553133,-100.41075478,9.792e-05,2]
[352661475,1739220553157,-300.0,0.00010092,2]
[352661476,1739220553179,-24900.0,0.00010093,2]
[352661477,1739220553201,-45.45118627,0.00010174,2]
[352661527,1739220632019,-5000.0,0.00010072,2]
[352661529,1739220632028,-1187.08376783,0.00010174,2]
[352661531,1739220632038,-400.0,0.00010685,2]
[352661533,1739220632047,-3521.1983489,0.00010834,2]
[352661535,1739220632056,-300.0,0.00010834,2]
[352661536,1739220632066,-500.0,0.00010957,2]
[352661538,1739220632075,-411.25338935,0.00010957,2]
[352661540,1739220632085,-498.31219008,0.00010958,2]
[352661542,1739220632094,-514.07897582,0.00010958,2]
[352661544,1739220632104,-268.32934947,0.00010958,2]
[352661546,1739220632113,-504.28613947,0.00010958,2]
[352661548,1739220632122,-254.00005632,0.00010958,2]
[352661549,1739220632131,-599.5198016,0.00010958,2]
[352661551,1739220632140,-500.0,0.00010958,2]
[352661553,1739220632149,-501.62925064,0.00010958,2]
[352661555,1739220632158,-500.0,0.00010958,2]
[352661557,1739220632167,-500.0,0.00010958,2]
[352661558,1739220632176,-500.0,0.00010958,2]
[352661560,1739220632186,-500.0,0.00010958,2]
[352661562,1739220632195,-226.61407805,0.00010958,2]
[352661564,1739220632205,-500.0,0.00010958,2]
[352661566,1739220632214,-604.95066119,0.00010958,2]
[352661568,1739220632223,-500.0,0.00010958,2]
[352661570,1739220632233,-500.0,0.00010958,2]
[352661571,1739220632242,-500.0,0.00010958,2]
[352661573,1739220632251,-500.0,0.00010958,2]
[352661575,1739220632260,-500.0,0.00010958,2]
[352661577,1739220632269,-500.0,0.00010958,2]
[352661579,1739220632278,-500.0,0.00010958,2]
[352661581,1739220632288,-500.0,0.00010958,2]
[352661583,1739220632297,-500.0,0.00010958,2]
[352661584,1739220632307,-500.0,0.00010958,2]
[352661586,1739220632316,-500.0,0.00010958,2]
[352661588,1739220632325,-500.0,0.00010958,2]
[352661590,1739220632334,-500.0,0.00010958,2]
[352661591,1739220632343,-500.0,0.00010958,2]
[352661593,1739220632352,-500.0,0.00010958,2]
[352661595,1739220632362,-500.0,0.00010958,2]
[352661597,1739220632371,-525.93033157,0.00010958,2]
[352661599,1739220632380,-500.0,0.00010958,2]
[352661601,1739220632390,-500.0,0.00010958,2]
[352661602,1739220632399,-500.0,0.00010958,2]
[352661604,1739220632408,-500.0,0.00010958,2]
[352661606,1739220632417,-12.0220718,0.00010958,2]
[352661722,1739220637699,-5000.0,9.971e-05,2]
[352661724,1739220637709,-487.9779282,0.00010958,2]
[352661726,1739220637718,-500.0,0.00010958,2]
[352661728,1739220637729,-500.0,0.00010958,2]
[352661730,1739220637738,-500.0,0.00010958,2]
[352661731,1739220637748,-500.0,0.00010958,2]
[352661734,1739220637757,-500.0,0.00010958,2]
[352661736,1739220637768,-500.0,0.00010958,2]
[352661737,1739220637777,-500.0,0.00010958,2]
[352661739,1739220637787,-500.0,0.00010958,2]
[352661741,1739220637796,-500.0,0.00010958,2]
[352661743,1739220637806,-500.0,0.00010958,2]
[352661745,1739220637816,-500.0,0.00010958,2]
[352661748,1739220637827,-500.0,0.00010958,2]
[352661750,1739220637836,-500.0,0.00010958,2]
[352661752,1739220637845,-500.0,0.00010958,2]
[352661754,1739220637855,-500.0,0.00010958,2]
[352661756,1739220637865,-500.0,0.00010958,2]
[352661757,1739220637874,-500.0,0.00010958,2]
[352661760,1739220637884,-502.202752,0.00010958,2]
[352661762,1739220637894,-500.0,0.00010958,2]
[352661763,1739220637903,-500.0,0.00010958,2]
[352661765,1739220637913,-500.0,0.00010958,2]
[352661768,1739220637922,-500.0,0.00010958,2]
[352661769,1739220637932,-500.0,0.00010958,2]
[352661772,1739220637943,-500.0,0.00010958,2]
[352661773,1739220637956,-500.0,0.00010958,2]
[352661775,1739220637966,-500.0,0.00010958,2]
[352661777,1739220637975,-500.0,0.00010958,2]
[352661779,1739220637985,-500.0,0.00010958,2]
[352661782,1739220637994,-500.0,0.00010958,2]
[352661784,1739220638004,-500.0,0.00010958,2]
[352661786,1739220638013,-503.37352227,0.00010958,2]
[352661788,1739220638023,-500.0,0.00010958,2]
[352661790,1739220638032,-500.0,0.00010958,2]
[352661792,1739220638042,-500.0,0.00010958,2]
[352661794,1739220638052,-500.0,0.00010958,2]
[352661796,1739220638061,-500.0,0.00010958,2]
[352661797,1739220638071,-500.0,0.00010958,2]
[352661799,1739220638081,-500.0,0.00010958,2]
[352661802,1739220638091,-500.0,0.00010958,2]
[352661804,1739220638100,-500.0,0.00010958,2]
[352661806,1739220638109,-500.0,0.00010958,2]
[352661808,1739220638119,-500.0,0.00010958,2]
[352661810,1739220638128,-500.0,0.00010958,2]
[352661812,1739220638137,-500.0,0.00010958,2]
[352661814,1739220638147,-500.0,0.00010958,2]
[352661816,1739220638156,-500.0,0.00010958,2]
[352661818,1739220638166,-500.0,0.00010958,2]
[352661820,1739220638174,-500.0,0.00010958,2]
[352661822,1739220638184,-500.0,0.00010958,2]
[352661824,1739220638193,-500.0,0.00010958,2]
[352661825,1739220638203,-603.83,0.00010958,2]
[352661828,1739220638213,-204.1979142,0.00010958,2]
[352661830,1739220638222,-500.0,0.00010958,2]
[352661832,1739220638232,-500.0,0.00010958,2]
[352661834,1739220638241,-500.0,0.00010958,2]
[352661835,1739220638251,-500.0,0.00010958,2]
[352661837,1739220638260,-500.0,0.00010958,2]
[352661839,1739220638269,-500.0,0.00010958,2]
[352661841,1739220638279,-500.0,0.00010958,2]
[352661843,1739220638288,-500.0,0.00010958,2]
[352661845,1739220638297,-500.0,0.00010958,2]
[352661848,1739220638307,-500.0,0.00010958,2]
[352661850,1739220638316,-500.0,0.00010958,2]
[352661852,1739220638326,-500.0,0.00010958,2]
[352661853,1739220638335,-500.0,0.00010958,2]
[352661856,1739220638345,-500.0,0.00010958,2]
[352661857,1739220638354,-500.0,0.00010958,2]
[352661859,1739220638363,-500.0,0.00010958,2]
[352661861,1739220638372,-500.0,0.00010958,2]
[352661863,1739220638382,-500.0,0.00010958,2]
[352661865,1739220638391,-500.0,0.00010958,2]
[352661867,1739220638400,-500.0,0.00010958,2]
[352661869,1739220638409,-500.0,0.00010958,2]
[352661870,1739220638433,-525.37176731,0.00010958,2]
[352661871,1739220638443,-500.0,0.00010958,2]
[352661872,1739220638452,-500.0,0.00010958,2]
[352661873,1739220638461,-500.0,0.00010958,2]
[352661874,1739220638471,-500.0,0.00010958,2]
[352661875,1739220638480,-500.0,0.00010958,2]
[352661876,1739220638491,-500.0,0.00010958,2]
[352661877,1739220638500,-626.97894453,0.00010958,2]
[352661878,1739220638510,-500.0,0.00010958,2]
[352661879,1739220638520,-500.0,0.00010958,2]
[352661880,1739220638529,-500.0,0.00010958,2]
[352661881,1739220638539,-500.0,0.00010958,2]
[352661882,1739220638548,-500.0,0.00010958,2]
[352661883,1739220638558,-500.0,0.00010958,2]
[352661884,1739220638568,-500.0,0.00010958,2]
[352661885,1739220638578,-500.0,0.00010958,2]
[352661886,1739220638587,-500.0,0.00010958,2]
[352661887,1739220638597,-500.0,0.00010958,2]
[352661888,1739220638607,-630.64,0.00010958,2]
[352661889,1739220638616,-589.79274675,0.00010958,2]
[352661890,1739220638627,-500.0,0.00010958,2]
[352661891,1739220638636,-500.0,0.00010958,2]
[352661892,1739220638646,-500.0,0.00010958,2]
[352661893,1739220638658,-500.0,0.00010958,2]
[352661894,1739220638668,-500.0,0.00010958,2]
[352661895,1739220638678,-500.0,0.00010958,2]
[352661896,1739220638691,-500.0,0.00010958,2]
[352661897,1739220638701,-500.0,0.00010958,2]
[352661898,1739220638710,-500.0,0.00010958,2]
[352661899,1739220638720,-500.0,0.00010958,2]
[352661900,1739220638731,-500.0,0.00010958,2]
[352661901,1739220638741,-500.0,0.00010958,2]
[352661902,1739220638750,-500.0,0.00010958,2]
[352661903,1739220638759,-500.0,0.00010958,2]
[352661904,1739220638772,-500.0,0.00010958,2]
[352661905,1739220638781,-500.0,0.00010958,2]
[352661906,1739220638791,-500.0,0.00010958,2]
[352661907,1739220638800,-500.0,0.00010958,2]
[352661908,1739220638809,-500.0,0.00010958,2]
[352661909,1739220638823,-500.0,0.00010958,2]
[352661910,1739220638832,-500.0,0.00010958,2]
[352661911,1739220638842,-500.0,0.00010958,2]
[352661912,1739220638852,-500.0,0.00010958,2]
[352661913,1739220638861,-500.0,0.00010958,2]
[352661914,1739220638871,-500.0,0.00010958,2]
[352661915,1739220638880,-500.0,0.00010958,2]
[352661916,1739220638891,-500.0,0.00010958,2]
[352661917,1739220638900,-500.0,0.00010958,2]
[352661918,1739220638909,-856.68,0.00010958,2]
[352661919,1739220638919,-500.0,0.00010958,2]
[352661920,1739220638928,-500.0,0.00010958,2]
[352661921,1739220638938,-500.0,0.00010958,2]
[352661922,1739220638947,-500.0,0.00010958,2]
[352661923,1739220638957,-500.0,0.00010958,2]
[352661924,1739220638966,-500.0,0.00010958,2]
[352661925,1739220638975,-500.0,0.00010958,2]
[352661926,1739220638985,-500.0,0.00010958,2]
[352661927,1739220638995,-500.0,0.00010958,2]
[352661928,1739220639005,-500.0,0.00010958,2]
[352661929,1739220639014,-500.0,0.00010958,2]
[352661930,1739220639024,-500.0,0.00010958,2]
[352661931,1739220639034,-500.0,0.00010958,2]
[352661932,1739220639044,-500.0,0.00010958,2]
[352661933,1739220639054,-500.0,0.00010958,2]
[352661934,1739220639063,-500.0,0.00010958,2]
[352661935,1739220639072,-500.0,0.00010958,2]
[352661936,1739220639082,-500.0,0.00010958,2]
[352661937,1739220639092,-503.27598471,0.00010958,2]
[352661938,1739220639103,-500.0,0.00010958,2]
[352661939,1739220639113,-500.0,0.00010958,2]
[352661940,1739220639122,-500.0,0.00010958,2]